bitfinex-derivatives/quotes_ETHF0:USTF0_20240913
["timestamp","ask_amount","ask_price","bid_price","bid_amount"]
[1726232828460,2.86002447,2352.2,2352.0,1.11078506]
[1726232828666,1.67251447,2352.1,2351.9,1.11078506]
[1726232828871,1.67251447,2352.1,2351.9,1.53594506]
[1726232830165,2.86002447,2352.2,2351.9,1.53594506]
[1726232830365,1.67251447,2352.1,2351.9,1.53594506]
[1726232830571,2.86002447,2352.2,2351.9,1.53594506]
[1726232830766,2.43491447,2352.2,2351.9,1.53594506]
[1726232831275,2.86002447,2352.2,2351.9,1.53594506]
[1726232831968,2.86002447,2352.2,2351.9,4.74374506]
[1726232832277,0.42513,2352.1,2351.9,3.2078]
[1726232832474,2.86003447,2352.2,2351.9,3.63296]
[1726232832975,0.42513,2352.1,2351.9,3.2078]
[1726232833277,2.86003447,2352.2,2352.0,0.42514]
[1726232833471,2.86002447,2352.2,2352.0,0.42514]
[1726232834468,2.86002447,2352.2,2351.9,3.2078]
[1726232834676,2.86002447,2352.2,2351.9,3.63295]
[1726232834882,0.42514,2352.1,2351.9,3.2078]
[1726232835181,0.42514,2352.0,2351.9,3.2078]
[1726232835376,0.42513,2352.1,2351.9,3.2078]
[1726232836374,0.42514,2352.0,2351.9,3.2078]
[1726232837284,0.83464,2352.0,2351.9,3.2078]
[1726232839170,0.42513,2352.1,2352.0,0.42514]
[1726232839377,0.42513,2352.1,2352.0,0.80514]
[1726232839573,0.42513,2352.1,2352.0,1.17654]
[1726232839877,0.42513,2352.1,2352.0,0.7514]
[1726232840177,0.42513,2352.1,2352.0,1.17654]
[1726232840371,0.42513,2352.1,2352.0,0.7514]
[1726232841176,2.86003447,2352.2,2352.0,1.17654]
[1726232841383,0.7624,2352.2,2352.0,1.17654]
[1726232841584,0.42513,2352.1,2352.0,0.7514]
[1726232842379,0.7624,2352.2,2352.0,0.7514]
[1726232842584,0.42513,2352.1,2352.0,0.7514]
[1726232842781,1.18751,2352.2,2352.0,1.17654]
[1726232842983,1.18751,2352.2,2352.0,1.57034]
[1726232843379,1.67251447,2352.3,2352.0,1.1452]
[1726232843582,0.099,2352.5,2352.3,0.42508]
[1726232843583,2.05901447,2352.5,2352.3,0.42508]
[1726232843779,0.3865,2352.5,2352.4,1.21007]
[1726232844082,0.81155,2352.5,2352.4,0.785]
[1726232844582,0.3865,2352.5,2352.4,1.21007]
[1726232844781,0.3865,2352.5,2352.4,0.785]
[1726232845476,0.3865,2352.5,2352.4,1.21007]
[1726232845784,0.3865,2352.5,2352.4,0.785]
[1726232846879,1.67251447,2352.7,2352.4,5.0362]
[1726232847078,1.67251447,2352.8,2352.6,0.42503]
[1726232847788,2.09751447,2352.8,2352.6,0.42503]
[1726232849385,1.67251447,2352.8,2352.6,0.42503]
[1726232849586,1.67251447,2352.8,2352.6,0.42502]
[1726232849780,1.67251447,2352.8,2352.7,0.42502]
[1726232850292,1.67251447,2352.9,2352.8,0.425]
[1726232850484,1.67251447,2352.9,2352.8,0.8226]
[1726232851092,1.67251447,2352.9,2352.8,0.3976]
[1726232853587,2.09749447,2352.9,2352.8,0.3976]
[1726232854480,1.67251447,2352.9,2352.8,0.8226]
[1726232854686,1.67251447,2352.9,2352.8,0.3976]
[1726232855085,2.09749447,2352.9,2352.8,0.3976]
[1726232855285,1.67251447,2352.9,2352.8,0.3976]
[1726232855491,2.09749447,2352.9,2352.8,0.3976]
[1726232856300,2.09749447,2352.9,2352.7,0.42501]
[1726232856596,0.3832,2352.8,2352.7,0.42501]
[1726232857792,0.8082,2352.8,2352.6,0.42502]
[1726232858099,0.3831,2352.7,2352.6,0.42502]
[1726232859797,0.3831,2352.7,2352.5,4.0025]
[1726232859798,0.3831,2352.7,2352.5,4.42754]
[1726232860094,0.80813,2352.7,2352.5,4.42754]
[1726232860296,0.42504,2352.6,2352.5,3.6083]
[1726232860700,1.20513,2352.7,2352.5,8.28375]
[1726232860898,1.20513,2352.7,2352.5,4.03335]
[1726232861301,1.20513,2352.7,2352.6,3.2078]
[1726232861497,2.26768,2352.7,2352.6,3.2078]
[1726232861697,7.26019447,2352.7,2352.6,3.2078]
[1726232862090,17.51059447,2352.7,2352.1,1.11078506]
[1726232862296,0.42513,2352.1,2352.0,3.2078]
[1726232862603,3.32,2352.2,2352.0,3.2078]
[1726232862604,3.74512,2352.2,2352.0,3.2078]
[1726232862797,0.7667,2352.1,2352.0,3.2078]
[1726232872810,1.19183,2352.1,2352.0,3.2078]
[1726232874107,0.7667,2352.1,2352.0,3.2078]
[1726232874714,1.19183,2352.1,2352.0,3.2078]
[1726232877011,1.19183,2352.1,2352.0,3.63294]
[1726232877215,1.19183,2352.1,2352.0,3.2078]
[1726232878821,2.25465,2352.1,2352.0,3.2078]
[1726232879012,0.4252,2351.8,2351.7,3.2078]
[1726232879919,1.063,2351.7,2351.2,1.53606506]
[1726232880125,0.42527,2351.3,2351.2,0.42528]
[1726232880321,0.42531,2351.1,2351.0,0.099]
[1726232880623,1.67251447,2351.5,2351.0,9.419]
[1726232880807,2.05591447,2351.6,2351.3,0.42526]
[1726232881011,0.3834,2351.6,2351.4,0.3834]
[1726232881320,0.42523,2351.5,2351.4,0.3834]
[1726232881509,0.80863,2351.6,2351.4,0.3834]
[1726232882317,0.42523,2351.5,2351.4,0.3834]
[1726232882918,0.80863,2351.6,2351.4,0.3834]
[1726232883116,0.42523,2351.5,2351.4,0.3834]
[1726232883424,0.3834,2351.6,2351.4,0.3834]
[1726232884222,0.80863,2351.6,2351.4,0.3834]
[1726232884615,0.42523,2351.5,2351.4,0.3834]
[1726232885221,0.80863,2351.6,2351.4,0.3834]
[1726232886225,1.95523,2351.5,2351.4,0.3834]
[1726232886929,0.42525,2351.4,2351.2,3.63307]
[1726232887132,1.53,2351.3,2351.1,0.7744]
[1726232887334,2.35249,2351.2,2351.1,0.7744]
[1726232888125,0.82249,2351.2,2351.1,0.7744]
[1726232888519,0.82249,2351.2,2351.1,0.3751]
[1726232889423,0.82249,2351.2,2350.9,3.2078]
[1726232889424,0.3972,2351.2,2350.9,3.2078]
[1726232889623,0.42534,2350.9,2350.7,0.42537]
[1726232889933,0.42538,2350.7,2350.5,0.4254]
[1726232890229,0.42543,2350.5,2350.3,3.61]
[1726232890528,0.42542,2350.5,2350.3,4.03544]
[1726232890721,0.42542,2350.5,2350.3,3.61]
[1726232891321,3.32,2350.6,2350.3,3.61]
[1726232891322,0.42543,2350.4,2350.3,3.61]
[1726232891721,0.42543,2350.4,2350.3,0.4022]
[1726232891925,0.42543,2350.4,2350.2,0.8011]
[1726232892124,1.22603,2350.4,2350.2,0.8011]
[1726232892325,1.22603,2350.4,2350.2,1.22657]
[1726232892527,0.42545,2350.3,2350.1,0.81137]
[1726232892728,4.54605,2350.4,2350.1,1.20207]
[1726232893027,4.54605,2350.4,2350.2,0.42547]
[1726232893926,4.54605,2350.4,2350.1,1.20208]
[1726232894321,4.54605,2350.4,2350.1,0.7766]
[1726232894527,0.8006,2350.4,2350.3,0.42545]
[1726232894723,1.22603,2350.4,2350.2,0.42546]
[1726232895029,0.099,2350.7,2350.3,4.27143]
[1726232895232,0.42536,2350.8,2350.6,3.63318]
[1726232895434,0.42536,2350.8,2350.7,0.779]
[1726232897336,0.099,2351.2,2350.7,11.4116]
[1726232897636,0.42528,2351.3,2351.1,3.63311]
[1726232897831,0.42529,2351.2,2350.8,3.2078]
[1726232898129,0.42529,2351.2,2350.9,0.42534]
[1726232898330,0.3786,2351.1,2350.9,0.42534]
[1726232898534,0.80391,2351.1,2350.9,0.42534]
[1726232898934,0.3786,2351.1,2350.9,0.42534]
[1726232899232,4.76189,2351.1,2350.7,0.779]
[1726232899428,0.42535,2350.9,2350.7,0.42538]
[1726232899627,0.42537,2350.8,2350.6,0.42539]
[1726232900533,3.74536,2350.9,2350.7,0.42538]
[1726232902229,0.42536,2350.8,2350.7,0.42538]
[1726232902525,0.42536,2350.8,2350.6,0.42539]
[1726232903025,0.42536,2350.8,2350.7,0.42538]
[1726232903634,3.74535,2350.9,2350.7,0.42538]
[1726232903934,0.42536,2350.8,2350.7,0.42538]
[1726232904722,0.42536,2350.9,2350.7,0.42538]
[1726232904933,0.42536,2350.8,2350.7,0.42538]
[1726232908334,0.42536,2350.8,2350.6,0.42539]
[1726232908642,0.42538,2350.8,2350.6,0.42539]
[1726232908844,0.3935,2350.7,2350.6,0.42539]
[1726232909431,0.4254,2350.6,2350.4,4.40092]
[1726232909735,1.86356,2350.7,2350.4,1.19312]
[1726232909927,0.42541,2350.6,2350.4,1.19312]
[1726232913842,0.81431,2350.6,2350.4,1.19312]
[1726232917438,0.42542,2350.5,2350.4,0.7677]
[1726232917637,0.42542,2350.5,2350.4,0.3902]
[1726232917842,0.42542,2350.5,2350.4,0.81563]
[1726232918542,0.42542,2350.5,2350.4,0.42543]
[1726232920540,1.48902,2350.4,2350.3,3.2078]
[1726232920747,0.42547,2350.2,2350.1,0.42547]
[1726232921337,0.81047,2350.2,2350.1,0.42547]
[1726232921941,0.42549,2350.1,2350.0,3.63329]
[1726232922133,0.42549,2350.1,2349.9,0.8024]
[1726232922134,3.7455,2350.1,2349.9,1.22791]
[1726232922744,3.7455,2350.1,2349.9,0.8024]
[1726232922745,0.42551,2350.0,2349.9,0.8024]
[1726232922941,3.7455,2350.1,2349.9,0.3992]
[1726232923143,3.7455,2350.1,2349.9,0.82472]
[1726232923743,3.7455,2350.1,2349.9,0.3992]
[1726232924144,0.42551,2350.0,2349.9,0.3992]
[1726232924344,0.42551,2350.0,2349.7,3.63335]
[1726232924536,0.3892,2349.9,2349.8,0.42554]
[1726232924743,0.81473,2349.9,2349.7,4.04185]
[1726232925148,0.3892,2349.9,2349.7,4.04185]
[1726232926957,0.42552,2350.0,2349.7,4.04185]
[1726232927150,3.7455,2350.1,2349.8,0.42554]
[1726232927352,0.42551,2350.0,2349.8,0.42554]
[1726232927852,0.42551,2350.0,2349.7,4.04185]
[1726232928046,0.42553,2349.9,2349.7,4.04185]
[1726232928253,0.42552,2350.0,2349.7,4.04185]
[1726232928648,0.42553,2349.9,2349.7,4.04185]
[1726232928951,0.42552,2350.0,2349.7,4.04185]
[1726232929163,0.42554,2349.8,2349.6,0.81437]
[1726232929647,1.18294,2349.8,2349.6,0.81437]
[1726232930043,7.576,2349.7,2349.2,1.11078506]
[1726232930245,0.42567,2349.1,2349.0,3.6047]
[1726232931351,0.42567,2349.1,2349.0,3.2078]
[1726232933760,1.48985,2349.1,2349.0,3.2078]
[1726232935155,0.4257,2348.9,2348.8,0.7989]
[1726232936146,0.4257,2348.9,2348.7,3.2078]
[1726232936349,0.4257,2348.9,2348.8,0.7808]
[1726232937349,0.4006,2349.0,2348.8,0.7808]
[1726232937553,0.4257,2348.9,2348.8,0.7808]
[1726232940353,0.42574,2348.8,2348.6,0.3728]
[1726232940659,0.42574,2348.8,2348.6,0.79856]
[1726232940953,0.42574,2348.8,2348.7,3.2078]
[1726232941157,0.42572,2348.9,2348.7,3.63354]
[1726232941344,0.42571,2348.9,2348.7,3.63353]
[1726232942655,0.42572,2348.9,2348.7,3.63353]
[1726232943252,3.32,2349.2,2348.8,0.42572]
[1726232943253,0.4257,2349.0,2348.8,0.42572]
[1726232943455,0.099,2349.3,2349.2,0.42565]
[1726232943757,0.42561,2349.5,2349.3,0.42562]
[1726232943960,0.4256,2349.5,2349.4,0.3881]
[1726232945449,8.64001,2349.5,2349.2,3.2078]
[1726232945751,0.42563,2349.3,2349.2,3.2078]
[1726232946251,0.80092,2349.4,2349.2,3.2078]
[1726232946457,0.42563,2349.3,2349.2,3.2078]
[1726232948063,0.80093,2349.4,2349.2,3.2078]
[1726232948955,0.42563,2349.3,2349.2,3.2078]
[1726232949653,0.42563,2349.3,2348.9,3.2078]
[1726232949654,0.42569,2349.1,2348.9,3.2078]
[1726232949853,0.42569,2349.1,2348.9,3.6335]
[1726232950053,0.3789,2349.0,2348.9,3.2078]
[1726232951466,0.80459,2349.0,2348.9,3.2078]
[1726232951867,0.80459,2349.0,2348.9,3.6335]
[1726232952059,0.4081,2349.2,2348.9,3.2078]
[1726232952364,0.4081,2349.2,2349.0,0.42568]
[1726232952365,0.42566,2349.2,2349.0,0.42568]
[1726232952560,0.42569,2349.0,2348.9,3.2078]
[1726232953461,0.82199,2349.0,2348.9,3.2078]
[1726232953664,0.82199,2349.0,2348.9,3.6335]
[1726232953858,0.3963,2349.0,2348.9,3.6335]
[1726232954667,0.82199,2349.0,2348.9,3.6335]
[1726232955963,0.82199,2349.0,2348.9,3.2078]
[1726232956971,0.42572,2348.8,2348.7,0.7627]
[1726232957172,0.42572,2348.9,2348.8,0.42572]
[1726232957772,1.46054,2349.0,2348.7,0.42574]
[1726232957973,0.42572,2348.8,2348.7,0.81874]
[1726232958663,0.42572,2348.9,2348.7,0.81874]
[1726232958872,0.42572,2348.8,2348.7,0.81874]
[1726232961068,0.42572,2348.9,2348.7,0.81874]
[1726232961262,0.42572,2348.8,2348.7,0.81874]
[1726232962272,0.42572,2348.8,2348.7,4.02654]
[1726232962473,0.42572,2348.9,2348.7,4.02654]
[1726232962672,0.42572,2348.8,2348.7,4.02654]
[1726232963671,0.42572,2348.9,2348.7,4.02654]
[1726232963974,0.4257,2348.9,2348.7,3.6008]
[1726232964166,0.4257,2348.9,2348.7,4.02653]
[1726232964668,0.3963,2349.0,2348.8,0.42571]
[1726232964871,0.42571,2348.9,2348.7,3.6008]
[1726232965162,0.42571,2348.9,2348.8,0.42572]
[1726232965571,0.42571,2348.9,2348.7,3.6008]
[1726232965762,1.46053,2349.0,2348.7,4.02653]
[1726232965967,0.42571,2348.9,2348.8,0.42571]
[1726232967468,1.46053,2349.0,2348.9,0.4257]
[1726232967469,0.822,2349.0,2348.9,0.4257]
[1726232967668,0.822,2349.0,2348.8,0.42571]
[1726232967871,0.3963,2349.0,2348.9,0.4257]
[1726232969377,0.82199,2349.0,2348.9,0.4257]
[1726232969673,0.82199,2349.0,2348.8,0.42572]
[1726232969978,0.4257,2348.9,2348.8,0.42572]
[1726232972383,1.9557,2348.9,2348.8,0.42572]
[1726232972780,1.53,2348.9,2348.8,0.42572]
[1726232972980,1.9557,2348.9,2348.8,0.42572]
[1726232973783,1.53,2348.9,2348.8,0.42572]
[1726232974677,1.67251447,2349.1,2348.9,1.48997]
[1726232974879,1.67251447,2349.2,2349.1,0.42567]
[1726232975080,2.09816447,2349.2,2349.1,0.42567]
[1726232975282,3.62816447,2349.2,2349.1,0.42567]
[1726232976775,3.20251447,2349.2,2349.1,0.42567]
[1726232977581,3.62816447,2349.2,2349.1,0.42567]
[1726232978384,3.20111858,2349.2,2349.0,2.32526506]
[1726232978687,3.29412879,2349.3,2349.0,1.21448]
[1726232978688,3.62673015,2349.1,2349.0,1.21448]
[1726232978885,3.20106015,2349.1,2349.0,0.81928]
[1726232979183,3.20106015,2349.1,2349.0,4.02708]
[1726232979879,1.67106015,2349.1,2349.0,5.0913]
[1726232980077,1.67106015,2349.3,2349.2,0.42565]
[1726232980480,1.67106015,2349.3,2349.2,1.22465]
[1726232980696,1.67106015,2349.3,2349.2,6.54558]
[1726232980990,1.67106015,2349.4,2349.3,0.42563]
[1726232981180,1.67106015,2349.4,2349.3,3.63343]
[1726232981385,4.00796015,2349.5,2349.4,0.42561]
[1726232981680,4.00796015,2349.5,2349.4,0.81051]
[1726232981878,2.3369,2349.5,2349.4,0.81051]
[1726232982080,2.47834618,2349.5,2349.4,0.81051]
[1726232982283,2.05274618,2349.5,2349.4,0.81051]
[1726232983481,2.47834618,2349.5,2349.4,0.81051]
[1726232986981,2.47834618,2349.5,2349.4,0.42561]
[1726232987691,2.47834618,2349.5,2349.4,3.63341]
[1726232988085,2.47834618,2349.5,2349.4,3.2078]
[1726232988285,2.47834618,2349.5,2349.4,3.63341]
[1726232988992,2.47834618,2349.5,2349.4,3.2078]
[1726232989384,2.47834618,2349.5,2349.4,3.63341]
[1726232990482,2.47798761,2349.5,2349.4,3.63341]
[1726232992289,2.47798761,2349.5,2349.4,3.2078]
[1726232992489,2.47790747,2349.5,2349.4,3.63341]
[1726232995899,2.09660747,2349.5,2349.4,3.63341]
[1726232996100,2.48070747,2349.5,2349.4,3.63341]
[1726232997803,2.48070747,2349.5,2349.4,0.42561]
[1726232997804,0.8097,2349.5,2349.4,0.42561]
[1726232999904,2.48107031,2349.5,2349.4,0.42561]
[1726233000502,0.42563,2349.3,2349.2,0.82244]
[1726233000706,1.95563,2349.3,2349.2,0.82244]
[1726233001499,1.53,2349.3,2349.1,3.2078]
[1726233001701,2.36295,2349.2,2349.1,3.63347]
[1726233001902,3.13145,2349.2,2349.1,3.63347]
[1726233002099,3.13145,2349.2,2349.1,3.2078]
[1726233002597,3.13145,2349.2,2349.1,3.63347]
[1726233003006,3.13145,2349.2,2349.1,3.2078]
[1726233003204,3.13145,2349.2,2349.1,3.63347]
[1726233003405,3.13145,2349.2,2349.1,3.2078]
[1726233003795,1.67137031,2349.3,2349.2,2.55391]
[1726233004001,2.09698031,2349.5,2349.4,0.42561]
[1726233004201,2.09698031,2349.5,2349.2,4.6527]
[1726233004202,0.42561,2349.4,2349.2,0.3959]
[1726233004401,1.19641,2349.4,2349.3,0.42563]
[1726233004598,0.81111,2349.4,2349.3,0.42563]
[1726233004802,3.62698031,2349.5,2349.2,0.3959]
[1726233005001,1.67137031,2349.5,2349.4,3.63341]
[1726233005202,1.67137031,2349.6,2349.5,0.4256]
[1726233005397,2.50423031,2349.7,2349.6,0.42558]
[1726233005598,2.07867031,2349.7,2349.6,0.42558]
[1726233005811,4.03423031,2349.7,2349.5,0.83178]
[1726233006305,1.064,2349.5,2349.2,1.511744]
[1726233006508,1.064,2349.5,2349.2,0.3959]
[1726233006509,1.95563,2349.3,2349.2,0.3959]
[1726233006810,1.95563,2349.3,2349.2,0.82155]
[1726233007012,2.34713,2349.3,2349.2,0.3959]
[1726233007215,2.34713,2349.3,2349.2,0.82155]
[1726233007406,1.9215,2349.3,2349.2,0.82155]
[1726233007605,2.34713,2349.3,2349.2,0.82155]
[1726233008810,2.34713,2349.3,2349.1,4.323644]
[1726233009014,0.42569,2349.0,2348.8,8.521644]
[1726233009312,1.95569,2349.0,2348.8,3.63351]
[1726233009609,1.67265501,2349.1,2348.8,3.63351]
[1726233009610,3.62832501,2349.1,2348.9,0.4257]
[1726233009916,1.95567,2349.1,2348.9,0.42569]
[1726233010112,1.95567,2349.1,2348.8,4.323644]
[1726233010309,1.95567,2349.1,2348.9,0.4257]
[1726233010508,1.53,2349.1,2348.9,0.4257]
[1726233010809,1.67265501,2349.2,2349.0,1.53]
[1726233011104,1.77165501,2349.4,2349.3,0.42563]
[1726233011306,2.09826501,2349.4,2349.3,0.42563]
[1726233011499,1.67265501,2349.4,2349.3,0.42563]
[1726233012510,2.09826501,2349.4,2349.3,0.42563]
[1726233012717,1.67265501,2349.4,2349.3,0.42563]
[1726233013325,2.23003879,2349.5,2349.3,0.42563]
[1726233013326,1.67265501,2349.6,2349.5,0.4256]
[1726233013714,2.09823501,2349.6,2349.5,0.4256]
[1726233013909,1.67265501,2349.6,2349.4,3.2078]
[1726233014114,0.4256,2349.5,2349.4,3.2078]
[1726233014313,2.49375501,2349.5,2349.4,3.63341]
[1726233014809,2.06815501,2349.5,2349.4,3.63341]
[1726233015517,1.67265501,2349.5,2349.4,3.63341]
[1726233015709,1.67265501,2349.5,2349.4,8.95345]
[1726233015906,1.67265501,2349.6,2349.5,0.4256]
[1726233018019,2.09823501,2349.6,2349.4,4.749244]
[1726233018224,2.47913501,2349.6,2349.4,4.749244]
[1726233018521,2.47913501,2349.6,2349.5,0.4256]
[1726233018928,1.67265501,2349.6,2349.5,0.4256]
[1726233019129,1.67265501,2349.7,2349.6,0.42558]
[1726233019424,1.67317554,2349.7,2349.6,0.42558]
[1726233019819,1.67317554,2349.7,2349.6,0.81288]
[1726233021419,2.09873554,2349.7,2349.6,0.81288]
[1726233021924,0.42556,2349.7,2349.6,0.81288]
[1726233022317,3.62884526,2349.7,2349.6,0.42558]
[1726233022515,1.53,2349.7,2349.6,0.42558]
[1726233022715,3.20332281,2349.7,2349.6,0.42558]
[1726233023225,3.62888281,2349.7,2349.6,0.42558]
[1726233024722,3.62888281,2349.7,2349.6,3.2078]
[1726233025026,3.62888281,2349.7,2349.6,3.63338]
[1726233025027,3.62886045,2349.7,2349.6,3.63338]
[1726233025326,1.95556,2349.7,2349.6,3.63338]
[1726233025531,0.42556,2349.7,2349.6,3.63338]
[1726233026027,2.09893537,2349.7,2349.6,3.63338]
[1726233026724,2.09893537,2349.7,2349.6,3.2078]
[1726233026920,2.09893537,2349.7,2349.6,3.63338]
[1726233027515,3.62893537,2349.7,2349.6,3.2078]
[1726233027818,3.62893537,2349.7,2349.6,3.63338]
[1726233028911,3.62893537,2349.7,2349.6,3.2078]
[1726233029626,1.95556,2349.7,2349.6,3.2078]
[1726233029924,3.01947,2349.7,2349.6,3.2078]
[1726233031025,1.48965,2349.4,2349.3,3.2078]
[1726233031226,4.69290164,2349.4,2349.3,3.2078]
[1726233031726,3.01965,2349.4,2349.3,3.2078]
[1726233032024,0.42567,2349.1,2349.0,4.198]
[1726233032217,1.67347813,2349.1,2349.0,4.62367]
[1726233032426,1.67347813,2349.2,2349.1,0.42567]
[1726233032730,1.67347813,2349.3,2349.2,0.42565]
[1726233032934,1.67347813,2349.3,2349.2,3.63345]
[1726233033430,2.09910813,2349.3,2349.2,3.63345]
[1726233033631,1.67347813,2349.3,2349.2,3.63345]
[1726233033827,2.04737813,2349.4,2349.3,0.42563]
[1726233034030,1.67347813,2349.4,2349.3,0.42563]
[1726233034230,1.67347813,2349.4,2349.3,5.06563]
[1726233034530,1.67347813,2349.4,2349.3,0.80883]
[1726233035122,1.67347813,2349.4,2349.2,5.136384]
[1726233035123,2.09908813,2349.4,2349.2,5.136384]
[1726233035321,0.42563,2349.3,2349.2,4.710744]
[1726233035535,0.42563,2349.3,2349.2,3.5949]
[1726233036422,2.09910813,2349.3,2349.2,3.2078]
[1726233036623,0.42565,2349.2,2349.1,0.3737]
[1726233036825,1.21695,2349.2,2349.1,0.79937]
[1726233037124,0.7913,2349.2,2349.1,1.541514]
[1726233037326,0.7913,2349.2,2349.1,0.42567]
[1726233037732,0.42567,2349.1,2349.0,1.115844]
[1726233037921,4.68247,2349.1,2349.0,1.115844]
[1726233038127,0.4257,2348.9,2348.8,1.115844]
[1726233038328,5.7876,2348.9,2348.7,1.541584]
[1726233038527,0.3831,2348.8,2348.7,1.541584]
[1726233038722,0.80882,2348.8,2348.7,1.115844]
[1726233038927,1.20632,2348.8,2348.6,1.541594]
[1726233039128,1.61202,2348.8,2348.6,1.541594]
[1726233040030,1.61202,2348.8,2348.6,1.115844]
[1726233040536,1.61202,2348.8,2348.5,4.749414]
[1726233040929,0.80882,2348.8,2348.6,0.42576]
[1726233041128,0.3831,2348.8,2348.7,0.42574]
[1726233041328,1.6733685,2349.1,2348.9,1.48997]
[1726233041628,7.60598895,2349.6,2349.1,0.42567]
[1726233041629,4.0126085,2349.3,2349.1,0.42567]
[1726233041834,3.5869685,2349.3,2349.1,0.42567]
[1726233042036,4.0125985,2349.3,2349.1,0.42567]
[1726233042335,3.5869685,2349.3,2349.2,0.42565]
[1726233042537,2.33923,2349.3,2349.1,0.81896]
[1726233042726,3.5869685,2349.3,2349.2,0.42565]
[1726233043142,1.9136,2349.3,2349.2,0.42565]
[1726233043436,1.9136,2349.3,2349.1,0.81896]
[1726233043737,3.5869685,2349.3,2349.1,0.81896]
[1726233044037,1.9136,2349.3,2349.1,0.3933]
[1726233044333,0.3836,2349.3,2349.2,0.42565]
[1726233046728,2.0605685,2349.5,2349.3,0.42563]
[1726233046933,2.0605685,2349.5,2349.4,0.42561]
[1726233046934,1.6733685,2349.5,2349.4,0.42561]
[1726233047127,2.23130417,2349.7,2349.6,0.42558]
[1726233047128,1.6733685,2349.7,2349.6,0.42558]
[1726233047327,1.6733685,2349.8,2349.7,0.42556]
[1726233047631,2.0542685,2349.9,2349.8,0.42554]
[1726233047830,2.0542685,2349.9,2349.7,0.83465]
[1726233049636,2.0542685,2349.9,2349.8,0.42554]
[1726233049829,2.0542685,2349.9,2349.7,0.4091]
[1726233050030,2.0542685,2349.9,2349.7,0.83465]
[1726233050234,2.0542685,2349.9,2349.7,0.4091]
[1726233050942,0.3809,2349.9,2349.7,0.4091]
[1726233053938,0.80643,2349.9,2349.6,3.2078]
[1726233054240,0.80643,2349.9,2349.6,3.63338]
[1726233054641,0.80643,2349.9,2349.6,3.2078]
[1726233054833,0.3809,2349.9,2349.6,3.63337]
[1726233055031,0.80643,2349.9,2349.6,3.2078]
[1726233055236,2.4797985,2349.9,2349.6,3.2078]
[1726233055535,0.80643,2349.9,2349.6,3.2078]
[1726233055741,2.4797985,2349.9,2349.6,3.63338]
[1726233056238,2.4797985,2349.9,2349.6,3.2078]
[1726233056431,2.8864985,2349.9,2349.6,3.2078]
[1726233057349,2.8864985,2349.9,2349.6,3.63336]
[1726233057350,1.21313,2349.9,2349.6,3.63336]
[1726233057842,2.8864985,2349.9,2349.6,3.63336]
[1726233058038,0.42554,2349.8,2349.6,3.2078]
[1726233058244,2.8865085,2349.9,2349.6,3.2078]
[1726233058548,0.80644,2349.9,2349.6,3.63337]
[1726233058747,2.4798085,2349.9,2349.6,3.63337]
[1726233059139,2.4798085,2349.9,2349.6,3.2078]
[1726233059341,2.4798085,2349.9,2349.6,3.63338]
[1726233059639,2.4798085,2349.9,2349.6,3.2078]
[1726233060043,2.0542685,2349.9,2349.6,3.2078]
[1726233060248,0.80643,2349.9,2349.6,3.2078]
[1726233060546,0.80643,2349.9,2349.6,3.63337]
[1726233060746,0.80643,2349.9,2349.6,3.63338]
[1726233061935,0.3809,2349.9,2349.6,3.63337]
[1726233062146,0.80643,2349.9,2349.6,3.63337]
[1726233062649,0.3809,2349.9,2349.6,3.2078]
[1726233062847,0.80644,2349.9,2349.6,3.63337]
[1726233063347,0.4256,2349.5,2349.4,1.877344]
[1726233063547,0.42557,2349.7,2349.4,0.80181]
[1726233063749,0.42559,2349.6,2349.4,0.3762]
[1726233063950,0.42556,2349.7,2349.5,0.4081]
[1726233064559,0.42558,2349.6,2349.4,0.3762]
[1726233064845,1.20638,2349.6,2349.4,0.3762]
[1726233065343,0.4256,2349.5,2349.4,0.3762]
[1726233065546,0.4256,2349.5,2349.3,3.2078]
[1726233066053,2.4541685,2349.6,2349.3,3.2078]
[1726233066546,0.4256,2349.5,2349.3,3.2078]
[1726233066745,1.20639,2349.6,2349.3,3.63343]
[1726233066938,0.3713,2349.6,2349.4,0.4256]
[1726233067139,0.79688,2349.6,2349.3,5.16343]
[1726233067549,2.0782685,2349.8,2349.5,1.53]
[1726233067745,2.4774185,2349.8,2349.7,3.2078]
[1726233067951,2.0518685,2349.8,2349.7,3.2078]
[1726233069149,1.6733685,2349.9,2349.7,3.2078]
[1726233069447,2.0988885,2349.9,2349.7,3.2078]
[1726233069841,1.6733685,2349.9,2349.7,3.2078]
[1726233070041,2.0988985,2349.9,2349.7,3.2078]
[1726233070253,1.6733685,2349.9,2349.7,3.2078]
[1726233070753,2.0988985,2349.9,2349.7,3.2078]
[1726233072643,1.6733685,2349.9,2349.7,3.63336]
[1726233073251,2.0988985,2349.9,2349.7,3.2078]
[1726233073640,1.6733685,2349.9,2349.8,0.42554]
[1726233073843,1.6733685,2350.0,2349.8,0.42554]
[1726233074051,2.4788685,2350.1,2349.8,0.42554]
[1726233074250,2.4788685,2350.1,2349.9,0.4049]
[1726233074452,0.42551,2350.0,2349.9,0.4049]
[1726233074846,2.4788685,2350.1,2349.9,0.4049]
[1726233075046,2.0533685,2350.1,2350.0,0.42551]
[1726233075246,2.0533685,2350.1,2350.0,1.16761]
[1726233075546,2.0533685,2350.1,2350.0,0.7421]
[1726233075856,0.38,2350.1,2350.0,4.37541]
[1726233076055,1.6733685,2350.3,2350.2,0.42547]
[1726233076353,0.42546,2350.3,2350.0,3.9499]
[1726233076545,0.42546,2350.3,2350.1,0.42548]
[1726233076743,4.0096085,2350.4,2350.1,0.42548]
[1726233076944,0.42545,2350.3,2350.1,0.42548]